bitfinex/quotes_ETHUSD_20250623
["timestamp","ask_amount","ask_price","bid_price","bid_amount"]
[1750718153676,51.083,2409.2,2409.1,0.04]
[1750718153864,52.5987,2409.2,2409.1,0.04]
[1750718154259,57.29945543,2409.2,2409.1,0.04]
[1750718154875,41.5157,2409.2,2409.1,0.04]
[1750718155200,52.5727,2409.2,2409.1,0.04]
[1750718155386,1.5157,2410.0,2409.1,0.04]
[1750718155587,30.0,2409.9,2409.1,0.04]
[1750718155900,9.964,2410.9,2409.1,0.04]
[1750718155901,11.04,2410.1,2409.1,0.1550072]
[1750718156117,30.0,2410.4,2409.2,0.55]
[1750718156259,30.0,2410.2,2409.2,0.55]
[1750718156462,11.031,2410.3,2409.2,0.55]
[1750718156764,30.0,2410.4,2409.3,1.5599]
[1750718156961,30.0,2410.4,2409.6,0.55]
[1750718157203,30.0,2410.4,2409.5,0.55]
[1750718157204,10.0,2410.3,2409.5,0.55]
[1750718157568,10.0,2410.3,2409.8,4.14967256]
[1750718157770,10.998,2410.9,2409.9,0.55]
[1750718157968,10.998,2410.9,2410.1,0.55]
[1750718158164,11.4847,2411.8,2410.4,0.55]
[1750718158369,30.0,2411.6,2410.4,0.55]
[1750718158817,30.0,2411.6,2410.5,0.55]
[1750718159042,4.14545133,2412.3,2410.5,0.55]
[1750718159043,1.5157,2412.3,2410.6,1.5292]
[1750718159304,30.0,2411.7,2410.7,0.55]
[1750718159523,0.04,2412.9,2411.0,1.5292]
[1750718159675,30.0,2411.8,2411.1,0.55]
[1750718159871,10.0,2412.1,2411.1,0.55]
[1750718160183,10.954,2412.2,2411.1,0.55]
[1750718160379,0.04,2412.9,2411.1,0.55]
[1750718160578,10.947,2412.7,2411.1,0.55]
[1750718160780,10.947,2412.7,2411.3,0.55]
[1750718161182,30.0,2411.5,2410.5,0.1150072]
[1750718161407,10.0,2411.7,2410.5,0.1150072]
[1750718161608,0.5,2411.7,2410.8,4.14800066]
[1750718161806,0.04,2411.9,2411.3,0.55]
[1750718162011,0.04,2411.9,2411.5,0.55]
[1750718162170,0.04,2411.9,2411.8,4.69628078]
[1750718162633,0.04,2412.9,2412.2,0.55]
[1750718162634,30.0,2412.8,2412.2,0.55]
[1750718162916,10.0,2412.5,2411.4,1.5516]
[1750718163112,30.0,2412.2,2411.4,1.5516]
[1750718163281,30.0,2412.0,2411.4,1.5516]
[1750718163620,10.0,2411.9,2411.4,1.5516]
[1750718163936,10.901,2412.5,2411.5,0.55]
[1750718164103,10.0,2412.4,2411.5,0.55]
[1750718164313,10.0,2412.2,2411.5,0.55]
[1750718164545,30.0,2411.9,2411.4,1.5516]
[1750718164839,10.0,2412.2,2411.4,1.5516]
[1750718165044,10.0,2411.8,2411.4,1.5516]
[1750718165251,10.901,2412.5,2411.4,1.5516]
[1750718165252,10.0,2412.4,2411.4,1.5516]
[1750718165441,10.0,2412.0,2411.4,1.5516]
[1750718165594,30.0,2411.7,2410.5,0.1150072]
[1750718165796,0.55,2411.3,2410.5,0.1150072]
[1750718166053,10.0,2410.9,2410.5,0.1150072]
[1750718166214,10.0,2410.7,2410.5,0.1150072]
[1750718166550,10.0,2410.6,2410.5,0.1150072]
[1750718167039,0.5,2410.7,2410.6,5.66804481]
[1750718167246,10.825,2411.7,2410.6,2.6480052]
[1750718167536,1.5557,2412.3,2410.8,0.55]
[1750718167537,10.0,2411.5,2410.8,0.55]
[1750718167849,10.0,2411.8,2410.9,4.69772533]
[1750718168156,30.0,2411.9,2410.8,0.55]
[1750718168337,30.0,2411.7,2410.8,4.69786923]
[1750718168644,30.0,2412.0,2410.7,0.55]
[1750718168795,10.777,2411.9,2410.7,0.55]
[1750718168991,30.0,2411.8,2410.7,0.55]
[1750718169195,30.0,2411.8,2410.7,0.76847072]
[1750718169434,30.0,2412.1,2410.8,0.55]
[1750718169621,30.0,2412.1,2411.0,0.55]
[1750718170157,30.0,2412.1,2410.9,0.55]
[1750718170325,30.0,2412.1,2411.3,0.55]
[1750718170633,30.0,2412.1,2411.4,0.55]
[1750718170994,30.0,2412.1,2411.2,0.55]
[1750718171420,30.0,2412.1,2411.1,0.55]
[1750718171625,0.5,2411.9,2411.5,0.55]
[1750718171826,0.5,2411.9,2411.3,0.55]
[1750718172551,0.5,2411.9,2411.8,4.14628078]
[1750718172710,0.5,2411.9,2410.9,4.14782861]
[1750718172914,10.0,2412.6,2411.9,4.14593796]
[1750718173109,10.724,2412.9,2411.4,9.968]
[1750718173310,30.0,2412.8,2411.9,4.14599735]
[1750718173566,10.724,2412.9,2411.4,9.968]
[1750718173567,10.0,2412.5,2411.4,9.968]
[1750718173861,10.0,2412.8,2411.4,14.11494979]
[1750718174067,14.86852532,2412.9,2411.4,14.11494979]
[1750718174068,10.724,2412.9,2411.8,4.14627747]
[1750718174213,30.0,2412.8,2411.4,9.968]
[1750718174414,0.04,2412.9,2411.5,1.41150741]
[1750718174644,0.04,2412.9,2412.4,4.14513202]
[1750718175027,0.04,2412.9,2412.1,0.55]
[1750718175028,0.04,2412.9,2412.8,4.14456233]
[1750718175221,0.04,2412.9,2412.8,4.69456233]
[1750718175659,0.04,2412.9,2412.8,6.34226233]
[1750718175974,0.04,2412.9,2412.8,7.39096095]
[1750718176316,0.04,2412.9,2412.8,1.6477]
[1750718177157,0.04,2412.9,2412.8,2.1977]
[1750718177330,0.04,2412.9,2412.8,1.6477]
[1750718177531,0.04,2412.9,2412.8,6.34226233]
[1750718178437,0.04,2412.9,2412.8,2.1977]
[1750718178642,0.04,2412.9,2412.8,6.34226233]
[1750718181052,0.04,2412.9,2412.8,2.1977]
[1750718181683,0.04,2412.9,2412.8,6.34226233]
[1750718182785,0.04,2412.9,2412.8,2.1977]
[1750718183453,0.04,2412.9,2412.8,1.6477]
[1750718184292,0.04,2412.9,2412.2,5.66987411]
[1750718184454,0.04,2412.9,2412.2,1.5244]
[1750718184872,0.04,2412.9,2412.4,0.55]
[1750718185075,0.04,2412.9,2411.7,1.5244]
[1750718185271,0.04,2412.9,2412.1,4.14561135]
[1750718185457,0.04,2412.9,2411.7,5.67075122]
[1750718185659,10.0,2412.7,2411.7,5.67075122]
[1750718185888,10.0,2412.7,2411.8,4.14621569]
[1750718186091,40.0,2412.3,2411.5,9.962]
[1750718186395,40.0,2412.3,2411.0,10.01322574]
[1750718186396,30.0,2412.3,2411.4,4.14685034]
[1750718186553,30.0,2412.3,2411.0,5.8657]
[1750718186752,30.0,2412.3,2411.1,4.14748455]
[1750718186996,30.0,2412.3,2411.3,4.14704537]
[1750718187292,30.0,2412.3,2411.2,0.34621043]
[1750718187594,0.5,2412.1,2411.3,4.14705118]
[1750718188150,30.0,2412.0,2411.0,1.6407]
[1750718188395,40.0,2411.8,2410.5,0.1150072]
[1750718188553,30.0,2411.6,2410.5,0.1150072]
[1750718188963,34.14666167,2411.6,2410.5,0.1150072]
[1750718189171,30.0,2411.5,2410.5,0.1150072]
[1750718189366,30.0,2411.6,2410.5,0.1150072]
[1750718189790,10.0,2411.4,2410.5,0.1150072]
[1750718190078,10.0,2411.0,2410.5,0.1150072]
[1750718190392,1.6664,2411.7,2410.7,4.14806301]
[1750718190553,10.0,2411.5,2410.5,0.1150072]
[1750718190755,10.0,2411.1,2410.5,0.1150072]
[1750718190984,10.0,2411.5,2410.5,0.1150072]
[1750718191308,10.0,2411.1,2410.5,0.1150072]
[1750718191605,10.376,2411.1,2410.5,0.1150072]
[1750718191903,40.0,2410.6,2410.5,0.1150072]
[1750718192057,50.376,2410.6,2410.5,0.1150072]
[1750718192252,40.0,2410.6,2410.5,0.1150072]
[1750718192588,10.0,2410.6,2410.5,0.1150072]
[1750718192792,40.0,2410.6,2410.5,0.1150072]
[1750718192965,10.0,2410.6,2410.5,0.1150072]
[1750718193289,0.5,2410.6,2410.5,0.1150072]
[1750718195096,30.0,2411.1,2410.5,0.1150072]
[1750718195294,1.6638,2411.9,2410.5,0.1150072]
[1750718195466,30.0,2411.8,2410.5,0.1150072]
[1750718195668,30.0,2411.7,2410.6,4.1482043]
[1750718195872,30.0,2411.7,2410.5,0.1150072]
[1750718195873,30.0,2411.7,2410.9,4.14782136]
[1750718196054,30.0,2411.7,2411.2,4.14728428]
[1750718196398,4.14475646,2412.7,2411.2,4.14728428]
[1750718196399,1.7038,2412.9,2411.8,1.6277]
[1750718196606,1.6638,2412.5,2410.5,1.7427072]
[1750718196913,30.0,2412.4,2410.6,0.55]
[1750718197207,30.0,2412.4,2411.2,4.69727033]
[1750718197364,30.0,2412.3,2410.8,0.55]
[1750718197558,10.0,2412.2,2411.2,4.14717367]
[1750718197776,10.0,2412.3,2411.2,4.14730974]
[1750718197991,10.0,2412.1,2411.2,4.14730974]
[1750718198159,30.0,2412.3,2411.2,4.14730974]
[1750718198468,10.0,2412.0,2411.1,0.55]
[1750718198796,30.0,2412.3,2411.2,0.55]
[1750718198982,10.0,2412.0,2411.2,0.55]
[1750718199181,10.0,2412.1,2411.2,0.55]
[1750718199386,10.0,2412.1,2411.2,4.14730036]
[1750718199556,10.0,2412.3,2411.1,4.69741004]
[1750718199958,10.0,2412.1,2411.2,4.1472897]
[1750718200372,30.0,2412.3,2411.3,4.14710667]
[1750718200595,10.0,2412.2,2411.2,0.55]
[1750718200969,30.0,2412.1,2411.2,0.55]
[1750718201172,30.0,2412.1,2411.1,0.55]
[1750718201373,30.0,2412.1,2411.1,4.69746272]
[1750718201599,10.0,2412.1,2411.1,4.69746272]
[1750718201898,10.0,2412.1,2411.2,4.1472979]
[1750718202193,10.0,2412.3,2411.2,4.1472979]
[1750718202394,10.0,2412.1,2411.1,0.55]
[1750718202710,10.0,2412.3,2411.1,4.69746098]
[1750718202999,10.377,2412.4,2411.1,0.55]
[1750718203165,30.0,2412.3,2411.1,0.55]
[1750718203509,30.0,2412.3,2411.2,0.55]
[1750718203655,30.0,2412.3,2411.3,0.55]
[1750718203857,30.0,2412.3,2411.4,1.5293]
[1750718204518,1.5951,2413.0,2411.5,0.55]
[1750718204731,30.0,2412.8,2411.5,4.69673468]
[1750718204875,0.04,2412.9,2411.7,0.55]
[1750718205226,0.04,2412.9,2412.2,0.55]
[1750718205420,0.04,2412.9,2412.0,1.6172]
[1750718205421,30.0,2412.4,2412.0,1.6172]
[1750718205573,10.0,2412.5,2411.5,2.1672]
[1750718205574,10.0,2412.3,2411.5,2.1672]
[1750718205773,10.0,2412.5,2411.5,2.1672]
[1750718206000,30.0,2412.4,2411.5,1.6172]
[1750718206321,30.0,2412.4,2411.5,5.76399623]
[1750718206903,11.5033,2412.7,2411.5,5.76399623]
[1750718207223,10.0,2412.5,2411.5,1.6172]
[1750718207394,30.0,2412.4,2411.5,5.76390068]
[1750718208520,10.0,2412.5,2411.5,1.6172]
[1750718208818,10.0,2412.5,2410.7,4.14815003]
[1750718208819,30.0,2412.0,2411.1,1.5279]
[1750718209017,30.0,2411.8,2411.1,1.5279]
[1750718209221,30.0,2411.6,2410.6,1.5279]
[1750718209419,10.0,2411.3,2410.6,1.5279]
[1750718209579,10.0,2411.4,2410.6,1.5279]
[1750718209779,10.364,2411.5,2410.5,0.1150072]
[1750718209997,10.0,2411.2,2410.5,0.1150072]
[1750718210425,10.0,2411.4,2410.5,0.1150072]
[1750718210586,10.0,2411.3,2410.5,0.1150072]
[1750718210781,1.5874,2411.6,2410.5,0.1150072]
[1750718211090,30.0,2411.2,2410.5,0.1150072]
[1750718211283,10.0,2411.1,2410.5,0.1150072]
[1750718211521,10.0,2411.4,2410.5,0.1150072]
[1750718211821,30.0,2411.7,2410.9,1.6588]
[1750718212125,1.6535,2412.6,2411.0,0.55]
[1750718212324,13.01985667,2413.8,2411.0,0.55]
[1750718212325,30.0,2412.8,2411.4,0.55]
[1750718212526,1.6535,2413.2,2411.6,0.55]
[1750718212762,10.359,2413.4,2411.9,0.55]
[1750718213033,10.359,2413.4,2411.5,10.03256217]
[1750718213034,10.0,2413.5,2412.8,4.14456233]
[1750718213320,10.399,2413.9,2412.8,6.28576233]
[1750718213522,10.0,2413.8,2412.8,6.28576233]
[1750718213723,0.04,2413.9,2412.8,7.32881017]
[1750718213880,0.04,2413.9,2412.8,6.28576233]
[1750718213881,10.0,2413.7,2412.8,6.28576233]
[1750718214085,10.0,2413.8,2412.8,6.28576233]
[1750718214281,0.04,2413.9,2412.8,6.28576233]
[1750718214282,10.04,2413.9,2412.8,6.28576233]
[1750718214490,0.04,2413.9,2412.8,6.28576233]
[1750718214787,10.04,2413.9,2412.8,6.28576233]
[1750718216561,0.04,2413.9,2412.8,6.28576233]
[1750718216849,10.04,2413.9,2412.8,10.47276233]
[1750718216998,0.04,2413.9,2412.8,10.47276233]
[1750718218521,0.04,2413.9,2413.1,0.55]
[1750718218722,0.04,2413.9,2413.0,4.14421881]
[1750718218723,0.04,2413.9,2412.8,1.5912]
[1750718218910,0.04,2413.9,2412.9,4.14430244]
[1750718219111,10.0,2413.5,2412.3,1.5003]
[1750718219316,10.0,2413.3,2412.3,1.5003]
[1750718219508,10.0,2413.3,2412.0,14.152]
[1750718219509,30.0,2413.0,2412.1,4.14575337]
[1750718219861,10.0,2413.0,2412.1,4.14568204]
[1750718220001,10.0,2413.5,2412.6,4.1448138]
[1750718220198,10.0,2413.5,2412.5,4.14500219]
[1750718220427,10.0,2413.5,2412.1,1.82577408]
[1750718220649,10.0,2413.1,2411.8,5.64648175]
[1750718220938,10.0,2412.6,2411.1,10.002]
[1750718221146,30.0,2412.9,2411.2,4.14731254]
[1750718221356,10.0,2412.6,2411.3,0.34619608]
[1750718221514,30.0,2412.3,2411.3,4.49326592]
[1750718221715,40.0,2412.8,2411.3,2.21045961]
[1750718221916,10.0,2412.7,2411.3,2.21045961]
[1750718222127,30.0,2412.4,2411.3,2.21045961]
[1750718222342,10.337,2412.7,2411.6,4.14646808]
[1750718222505,10.0,2412.6,2411.3,6.35752926]
[1750718222707,30.0,2412.5,2411.5,4.14670491]
[1750718222931,10.0,2412.2,2411.4,5.12880314]
[1750718223127,10.0,2412.6,2411.9,4.14598773]
[1750718223321,1.5073,2413.0,2412.6,4.1448868]
[1750718223623,30.0,2413.4,2412.5,4.14495676]
[1750718223829,10.0,2413.3,2412.5,4.14506168]
[1750718224083,30.0,2413.4,2412.5,4.14506168]
[1750718224084,30.0,2413.4,2412.5,0.41450617]
[1750718224262,10.0,2413.6,2412.5,0.41450617]
[1750718224263,30.0,2413.8,2412.5,0.41450617]
[1750718224424,30.0,2413.6,2412.6,4.14478664]
[1750718224622,0.04,2413.9,2412.9,4.14424408]
[1750718224922,0.04,2413.9,2412.7,1.5003]
[1750718224923,30.0,2413.8,2412.7,1.5003]
[1750718225137,10.0,2413.5,2412.7,1.5003]
[1750718225339,10.371,2413.9,2412.8,4.14447226]
[1750718225538,30.0,2413.8,2412.4,5.64543375]
[1750718225738,10.0,2413.3,2412.4,1.5003]
[1750718225951,30.0,2412.4,2411.3,1.86426353]
[1750718226183,10.329,2412.8,2411.2,1.5003]
[1750718226330,10.0,2412.5,2411.2,1.5003]
[1750718226530,30.0,2411.2,2409.4,4.66595238]
[1750718226729,30.0,2411.7,2410.8,4.14792443]
[1750718227039,30.0,2411.7,2410.4,1.5003]
[1750718227241,1.5073,2411.8,2410.4,1.5003]
[1750718227566,10.0,2411.6,2410.5,4.3010072]
[1750718227766,30.0,2411.3,2410.5,0.1150072]
[1750718227984,40.0,2411.2,2410.5,0.1150072]
[1750718228361,30.0,2410.7,2410.5,0.1150072]
[1750718228684,10.0,2411.2,2410.1,0.04]
[1750718228685,52.3843,2410.6,2410.1,0.04]
[1750718228889,4.69903327,2410.2,2410.1,0.04]
[1750718229117,40.55,2410.2,2410.1,0.04]
[1750718229398,50.326,2410.2,2410.1,0.04]
[1750718229546,40.0,2410.2,2410.1,0.04]
[1750718229948,42.0573,2410.2,2410.1,0.04]
[1750718230161,42.55987126,2410.2,2410.1,0.04]
[1750718230379,11.9431,2410.1,2409.1,0.04]
[1750718230662,30.0,2409.5,2409.1,0.04]
[1750718230862,40.0,2409.2,2409.1,0.04]
[1750718231574,10.0,2409.2,2409.1,0.04]
[1750718231955,1.3931,2409.8,2409.1,0.04]
[1750718232178,10.326,2410.0,2409.1,0.04]
[1750718232179,40.0,2409.9,2409.1,0.04]
[1750718232359,1.5073,2410.2,2409.2,0.55]
[1750718232560,1.5073,2410.2,2409.5,4.1501678]
[1750718232561,30.0,2410.1,2409.5,4.1501678]
[1750718232759,30.0,2410.1,2409.1,0.04]
[1750718232989,50.55,2409.9,2409.1,0.04]
[1750718233304,30.0,2409.6,2409.1,0.04]
[1750718233447,10.0,2409.3,2409.1,0.04]
[1750718233652,30.0,2409.2,2409.1,0.04]
[1750718233851,1.5073,2409.5,2409.1,0.04]
[1750718234290,10.0,2409.7,2409.1,0.04]
[1750718234486,1.6173,2410.2,2409.1,0.04]
[1750718234487,1.6173,2410.2,2409.1,4.19089048]
[1750718234686,30.0,2410.1,2409.3,4.15043283]
[1750718234985,30.0,2410.1,2409.2,0.55]
[1750718235170,10.326,2410.4,2409.4,4.15038502]
[1750718235401,1.6424,2410.7,2409.4,0.55]
[1750718235590,40.324,2411.4,2409.8,0.55]
[1750718235898,30.0,2411.8,2410.2,0.55]
[1750718236192,30.0,2411.8,2409.9,1.055]
[1750718236193,30.0,2411.8,2410.8,0.55]
[1750718236364,10.0,2411.7,2411.1,4.1473488]
[1750718236553,10.0,2411.7,2411.0,4.14751884]
[1750718236752,0.04,2411.9,2410.9,4.14767375]
[1750718236954,0.04,2411.9,2410.9,1.05096737]
[1750718237155,0.04,2411.9,2410.8,4.189]
[1750718237392,0.04,2411.9,2410.5,9.97]
[1750718237393,10.0,2411.5,2410.5,9.97]
[1750718237598,10.0,2411.1,2410.2,5.77821147]
[1750718237919,10.0,2411.1,2410.2,1.6293]
[1750718237920,30.0,2411.0,2410.2,1.6293]
[1750718238783,30.0,2411.0,2410.1,4.14919201]
[1750718238982,10.0,2411.0,2410.0,8.33835876]
[1750718239198,10.0,2411.0,2410.0,4.189]
[1750718239398,10.0,2411.2,2410.0,8.33835743]
[1750718239773,10.0,2411.0,2410.0,4.189]
[1750718239969,10.0,2411.0,2410.0,5.23506145]
[1750718240179,30.0,2410.7,2409.8,1.5721]
[1750718240479,10.0,2410.7,2409.8,1.5721]
[1750718240681,30.0,2410.4,2409.4,4.189]
[1750718240888,10.0,2410.1,2409.4,4.189]
[1750718241218,10.0,2410.0,2409.4,4.189]
[1750718241374,10.0,2410.2,2409.4,4.189]
[1750718241572,10.0,2410.2,2409.2,1.5721]
[1750718242296,10.0,2410.0,2409.2,1.5721]
[1750718242497,1.6465,2410.0,2409.1,0.04]
[1750718243014,14.149887,2409.8,2409.1,0.03]
[1750718243186,30.0,2409.5,2409.1,0.03]
[1750718243389,10.0,2409.6,2409.1,0.03]
[1750718243694,10.0,2409.4,2409.1,0.03]
[1750718243897,10.0,2409.4,2408.1,0.2590833]
[1750718243898,11.9031,2409.1,2408.1,0.2590833]
[1750718244073,11.9031,2409.1,2405.0,5.827105]
[1750718244074,4.12961831,2406.2,2406.1,2.06414401]
[1750718244278,4.12961831,2406.2,2405.8,2.06851711]
[1750718244279,55.6201,2406.2,2405.8,2.06851711]
[1750718244574,35.0402504,2405.9,2405.8,2.06851711]
[1750718244772,4.97491336,2406.1,2405.8,2.06851711]
[1750718244773,1.18115015,2406.1,2405.8,2.06851711]
[1750718244972,9.971,2406.4,2405.8,2.06851711]
[1750718245177,10.311,2406.5,2405.8,2.06851711]
[1750718245505,10.311,2406.6,2405.8,2.06851711]
[1750718245689,14.610858,2406.6,2405.8,2.29727715]
[1750718245890,0.2161,2407.9,2406.1,4.15597626]
[1750718246202,14.610858,2407.7,2406.2,15.507596]
[1750718246403,24.610858,2407.5,2406.2,15.507596]
[1750718246602,0.2161,2407.9,2406.6,0.55]
[1750718246810,0.5,2407.5,2406.8,0.55]
[1750718247026,0.2561,2407.9,2407.1,0.55]
[1750718247229,14.610858,2407.8,2406.5,1.5199]
[1750718247730,14.610858,2407.4,2406.5,1.5199]
[1750718247952,0.2561,2407.9,2406.6,0.55]
[1750718248105,10.0,2407.7,2406.7,0.62251797]
[1750718248425,10.5701,2407.9,2406.7,0.55]
[1750718248426,14.610858,2407.8,2406.7,0.55]
[1750718248628,10.0,2407.5,2406.5,1.5199]
[1750718248817,10.0,2407.3,2406.5,1.5199]
[1750718249020,14.610858,2406.5,2405.8,2.04014534]
[1750718249232,0.55,2406.2,2405.8,2.04014534]
[1750718249537,25.160858,2405.9,2405.8,2.04014534]
[1750718249695,25.160858,2405.8,2405.7,2.22355011]
[1750718249897,35.473858,2405.8,2405.7,2.22355011]
[1750718250094,24.610858,2405.8,2405.7,2.22355011]
[1750718250314,35.473858,2405.8,2405.7,2.22355011]
[1750718250828,34.922858,2405.8,2405.7,2.22355011]
[1750718251142,30.55,2406.1,2405.8,0.27032074]
[1750718251311,34.48824114,2405.5,2405.2,2.03436926]
[1750718251637,1.59,2406.0,2405.1,2.11834283]
[1750718251638,21.57853102,2405.2,2405.1,2.11834283]
[1750718251840,4.62895987,2405.2,2405.1,2.11834283]
[1750718252135,4.62895987,2405.8,2405.1,2.11834283]
[1750718252294,0.5,2405.9,2405.1,2.11834283]
[1750718252295,40.8237,2405.6,2405.1,2.11834283]
[1750718252656,11.5132547,2405.4,2405.1,2.11834283]
[1750718252968,10.25895282,2405.2,2405.1,2.11834283]
[1750718253091,34.73095282,2405.2,2405.1,2.11834283]
[1750718253293,40.0,2405.1,2405.0,1.21147161]
[1750718253635,45.022,2405.1,2405.0,3.25531988]
[1750718253937,30.0,2405.1,2405.0,3.25531988]
[1750718254121,40.314,2405.1,2405.0,3.25531988]
[1750718254703,10.314,2405.1,2405.0,3.25531988]
[1750718255097,40.314,2405.1,2405.0,3.25531988]
[1750718255395,40.864,2405.1,2405.0,3.25531988]
[1750718255595,50.864,2405.1,2405.0,3.25531988]
[1750718255795,0.5,2406.7,2405.0,3.25531988]
[1750718256035,30.0,2406.5,2405.0,3.25531988]
[1750718256561,30.0,2406.3,2405.0,3.58085187]
[1750718256698,30.0,2406.3,2405.1,3.62336232]
[1750718256894,30.0,2406.2,2405.1,3.62336232]
[1750718257122,30.0,2406.0,2405.1,3.62336232]
[1750718257326,30.0,2405.8,2405.2,4.1576176]
[1750718257539,10.318,2405.7,2405.2,1.3475967]
[1750718257707,4.159,2406.7,2405.3,0.55]
[1750718257922,30.0,2406.5,2405.3,0.55]
[1750718258125,30.0,2406.6,2405.8,4.15646636]
[1750718258440,0.04,2406.9,2406.1,1.5005]
[1750718258733,10.0,2406.6,2406.1,1.5005]
[1750718258936,10.319,2406.8,2406.1,1.5005]
[1750718259134,30.0,2406.7,2406.1,1.5005]
[1750718259341,10.0,2406.4,2406.1,1.5005]
[1750718259637,30.0,2406.7,2406.1,1.5005]
[1750718259811,0.04,2406.9,2406.1,1.5005]
[1750718260009,10.0,2406.8,2406.2,2.04070921]
[1750718260209,30.0,2406.6,2406.1,1.5005]
[1750718260444,0.04,2406.9,2405.6,1.5043]
[1750718260445,10.318,2406.5,2405.6,1.5043]
[1750718260938,10.318,2406.5,2405.7,4.15668779]
[1750718261148,30.0,2405.7,2405.0,1.21147161]
[1750718261299,0.55,2405.1,2404.1,0.04]
[1750718261499,40.0,2404.6,2404.1,0.04]
[1750718261719,30.0,2404.9,2404.1,0.04]
[1750718261904,0.55,2404.5,2404.1,0.04]
[1750718262104,0.55,2404.3,2404.1,0.04]
[1750718262317,50.988,2404.2,2404.1,0.04]
[1750718262526,40.0,2404.2,2404.1,0.04]
[1750718262837,50.437,2404.2,2404.1,0.04]
[1750718263727,10.0,2404.2,2404.1,0.04]
[1750718264105,40.0,2404.2,2404.1,0.04]
[1750718264304,40.55,2404.2,2404.1,0.04]
[1750718265202,50.977,2404.2,2404.1,0.04]
[1750718265813,54.587,2404.2,2404.1,0.04]
[1750718266013,55.137,2404.2,2404.1,0.04]
[1750718266516,59.62158614,2404.2,2404.1,0.04]
[1750718267050,58.96451019,2404.2,2404.1,3e-08]
[1750718267253,43.87806389,2403.8,2403.3,0.2190833]
[1750718267459,54.28906389,2403.8,2403.3,0.2190833]
[1750718268133,55.44613983,2403.8,2403.3,0.2190833]
[1750718268762,10.386,2403.8,2403.3,0.2190833]
[1750718269057,10.386,2403.8,2403.3,0.2240833]
[1750718269058,50.386,2403.8,2403.3,0.2240833]
[1750718269728,53.71406389,2403.8,2403.3,0.2240833]
[1750718270130,54.26406389,2403.8,2403.3,0.2240833]
[1750718271164,33.87806389,2403.8,2403.3,0.2240833]
[1750718271465,57.83306389,2403.8,2403.3,0.2240833]
[1750718271636,58.38306389,2403.8,2403.3,0.2240833]
[1750718271836,30.0,2403.8,2403.3,0.2240833]
[1750718272244,40.336,2403.8,2403.3,0.2240833]
[1750718272469,50.336,2403.8,2403.3,0.2240833]
[1750718272775,40.336,2403.8,2403.3,0.2240833]
[1750718272925,40.336,2403.8,2403.3,1.8519833]
[1750718272926,10.329,2403.8,2403.3,1.8519833]
[1750718273144,10.331,2403.8,2403.3,1.8519833]
[1750718273386,0.5,2404.2,2403.3,1.8519833]
[1750718273754,0.5,2404.2,2403.9,4.15989711]
[1750718273954,0.5,2404.2,2404.0,0.57877971]
[1750718274184,10.331,2404.8,2404.1,4.1594035]
[1750718274349,10.0,2405.8,2403.9,0.55]
[1750718274546,30.0,2405.8,2404.5,1.6279]
[1750718274792,30.0,2405.6,2404.5,1.6279]
[1750718275083,10.0,2405.5,2404.5,1.6279]
[1750718275303,30.0,2405.6,2404.6,0.57869218]
[1750718275455,30.0,2405.6,2404.5,1.6279]
[1750718275852,10.331,2405.5,2404.6,4.15869583]
[1750718276100,10.331,2405.5,2404.5,1.6279]
[1750718276101,10.0,2405.3,2404.5,1.6279]
[1750718276685,10.329,2405.4,2404.6,4.158583]
[1750718276893,10.0,2405.3,2404.5,1.6279]
[1750718277181,10.329,2405.6,2404.7,1.6019]
[1750718277370,0.04,2405.9,2404.7,1.6019]
[1750718277371,10.329,2405.8,2404.8,0.21519]
[1750718277570,10.329,2405.8,2404.9,4.15807245]
[1750718277787,10.329,2405.8,2404.8,0.21519]
[1750718277788,40.0,2405.7,2404.8,0.21519]
[1750718277987,30.0,2405.7,2404.7,1.6019]
[1750718278185,10.0,2405.6,2404.7,1.6019]
[1750718278388,10.0,2405.2,2404.7,1.6019]
[1750718278590,10.328,2405.1,2404.7,1.6019]
[1750718278792,10.0,2405.0,2404.7,1.6019]
[1750718279879,10.326,2405.0,2403.8,1.6542]
[1750718280053,10.0,2404.9,2403.8,1.6542]
[1750718280258,30.0,2404.6,2403.8,1.6542]
[1750718280458,10.326,2404.5,2403.8,5.81420276]
[1750718280661,0.4998,2405.6,2403.8,1.6542]
[1750718280860,0.04,2405.9,2404.5,1.6542]
[1750718281194,30.0,2405.7,2404.5,1.6542]
[1750718281381,30.0,2405.5,2404.5,1.6542]
[1750718281581,13.32633032,2405.1,2403.8,1.6542]
[1750718281800,3.32615761,2405.2,2403.3,1.8256833]
[1750718281801,10.55,2404.7,2403.3,1.8256833]
[1750718281978,10.0,2404.5,2403.3,1.8256833]
[1750718282296,30.0,2404.4,2403.4,4.16066363]
[1750718282603,30.0,2404.4,2403.3,1.8256833]
[1750718282765,10.324,2404.9,2404.3,1.5295]